{"text_format":"3","workbook":"xlsx","n_sheets":3,"sheets":["Sheet1","Sheet2","Sheet3"],"read":"whole","date_system":"1900"}

{"sheet":"Sheet1","index":0,"n_rows":226,"n_cols":7,"rows_kept":226,"merged":[[0,2,0,3],[1,1,1,6]]}
[]
[null,"2015년 지방세 성실납세자 추첨결과 "]
[]
[null,"순번","납세자명","주소",null,null,"주소"]
[null,1,"김경용","경상북도","예천군","유천면",{"$f":" D5&\" \" &E5& \" \" &F5","v":"경상북도 예천군 유천면"}]
[null,2,"박정혜","경상북도","예천군","상리면",{"$f":" D6&\" \" &E6& \" \" &F6","v":"경상북도 예천군 상리면"}]
[null,3,"최대수","경상북도","예천군","풍양면","경상북도 예천군 풍양면"]
[null,4,"오상호","경상북도","예천군","예천읍","경상북도 예천군 예천읍"]
[null,5,"김용태","경상북도","예천군","풍양면","경상북도 예천군 풍양면"]
[null,6,"구상모","경상북도","예천군","예천읍","경상북도 예천군 예천읍"]
[null,7,"김재숙","경상북도","예천군","용궁면","경상북도 예천군 용궁면"]
[null,8,"박동진","경상북도","예천군","예천읍","경상북도 예천군 예천읍"]
[null,9,"변병덕","경상북도","예천군","예천읍","경상북도 예천군 예천읍"]
[null,10,"안분숙","경상북도","예천군","보문면","경상북도 예천군 보문면"]
[null,11,"최창호","경상북도","예천군","예천읍","경상북도 예천군 예천읍"]
[null,12,"최선자","경상북도","예천군","예천읍","경상북도 예천군 예천읍"]
[null,13,"홍상선","경상북도","예천군","유천면","경상북도 예천군 유천면"]
[null,14,"정의석","경상북도","예천군","지보면","경상북도 예천군 지보면"]
[null,15,"이봉식","경상북도","예천군","예천읍","경상북도 예천군 예천읍"]
[null,16,"이융복","경상북도","예천군","풍양면","경상북도 예천군 풍양면"]
[null,17,"윤진화","경상북도","예천군","예천읍","경상북도 예천군 예천읍"]
[null,18,"김병균","경상북도","예천군","지보면","경상북도 예천군 지보면"]
[null,19,"권순민","경상북도","예천군","예천읍","경상북도 예천군 예천읍"]
[null,20,"황영훈","경상북도","예천군","예천읍","경상북도 예천군 예천읍"]
[null,21,"황기연","경상북도","예천군","예천읍","경상북도 예천군 예천읍"]
[null,22,"박희도","경상북도","예천군","용문면","경상북도 예천군 용문면"]
[null,23,"도미환","경상북도","예천군","용궁면","경상북도 예천군 용궁면"]
[null,24,"안영대","경상북도","예천군","예천읍","경상북도 예천군 예천읍"]
[null,25,"오의상","경상북도","예천군","풍양면","경상북도 예천군 풍양면"]
[null,26,"이락진","경상북도","예천군","용문면","경상북도 예천군 용문면"]
[null,27,"장성식","경상북도","예천군","예천읍","경상북도 예천군 예천읍"]
[null,28,"송상출","경상북도","예천군","예천읍","경상북도 예천군 예천읍"]
[null,29,"이양형","경상북도","예천군","예천읍","경상북도 예천군 예천읍"]
[null,30,"고인섭","경상북도","예천군","예천읍","경상북도 예천군 예천읍"]
[null,31,"고긍림","경상북도","예천군","개포면","경상북도 예천군 개포면"]
[null,32,"박성윤","경상북도","예천군","예천읍","경상북도 예천군 예천읍"]
[null,33,"장용식","경상북도","예천군","예천읍","경상북도 예천군 예천읍"]
[null,34,"김정희","경상북도","예천군","용문면","경상북도 예천군 용문면"]
[null,35,"이제익","경상북도","예천군","예천읍","경상북도 예천군 예천읍"]
[null,36,"전용재","경상북도","예천군","유천면","경상북도 예천군 유천면"]
[null,37,"김도희","경상북도","예천군","예천읍","경상북도 예천군 예천읍"]
[null,38,"채초롱","경상북도","예천군","예천읍","경상북도 예천군 예천읍"]
[null,39,"이재국","경상북도","예천군","하리면","경상북도 예천군 하리면"]
[null,40,"임진기","경상북도","예천군","개포면","경상북도 예천군 개포면"]
[null,41,"김재철","경상북도","예천군","감천면","경상북도 예천군 감천면"]
[null,42,"박봉수","경상북도","예천군","감천면","경상북도 예천군 감천면"]
[null,43,"차명수","경상북도","예천군","유천면","경상북도 예천군 유천면"]
[null,44,"김동훈","경상북도","예천군","유천면","경상북도 예천군 유천면"]
[null,45,"이문락","경상북도","예천군","예천읍","경상북도 예천군 예천읍"]
[null,46,"안지은","경상북도","예천군","호명면","경상북도 예천군 호명면"]
[null,47,"김명숙","경상북도","예천군","예천읍","경상북도 예천군 예천읍"]
[null,48,"오경월","경상북도","예천군","풍양면","경상북도 예천군 풍양면"]
[null,49,"지봉필","경상북도","예천군","감천면","경상북도 예천군 감천면"]
[null,50,"황화분","경상북도","예천군","호명면","경상북도 예천군 호명면"]
[null,51,"황석기","경상북도","예천군","감천면","경상북도 예천군 감천면"]
[null,52,"엄재기","경상북도","예천군","용궁면","경상북도 예천군 용궁면"]
[null,53,"정연환","경상북도","예천군","하리면","경상북도 예천군 하리면"]
[null,54,"김국남","경상북도","예천군","예천읍","경상북도 예천군 예천읍"]
[null,55,"이한우","경상북도","예천군","예천읍","경상북도 예천군 예천읍"]
[null,56,"이창우","경상북도","예천군","개포면","경상북도 예천군 개포면"]
[null,57,"권오성","경상북도","예천군","예천읍","경상북도 예천군 예천읍"]
[null,58,"한연이","경상북도","예천군","지보면","경상북도 예천군 지보면"]
[null,59,"이옥순","경상북도","예천군","상리면","경상북도 예천군 상리면"]
[null,60,"김종수","경상북도","예천군","풍양면","경상북도 예천군 풍양면"]
[null,61,"정태임","경상북도","예천군","용궁면","경상북도 예천군 용궁면"]
[null,62,"박성재","경상북도","예천군","하리면","경상북도 예천군 하리면"]
[null,63,"우학구","경상북도","예천군","호명면","경상북도 예천군 호명면"]
[null,64,"김일용","경상북도","예천군","호명면","경상북도 예천군 호명면"]
[null,65,"안분남","경상북도","예천군","예천읍","경상북도 예천군 예천읍"]
[null,66,"김규수","경상북도","예천군","보문면",{"$f":" D70&\" \" &E70& \" \" &F70","v":"경상북도 예천군 보문면"}]
[null,67,"홍창락","경상북도","예천군","풍양면","경상북도 예천군 풍양면"]
[null,68,"김홍택","경상북도","예천군","예천읍","경상북도 예천군 예천읍"]
[null,69,"정상모","경상북도","예천군","풍양면","경상북도 예천군 풍양면"]
[null,70,"정영구","경상북도","예천군","보문면","경상북도 예천군 보문면"]
[null,71,"장지백","경상북도","예천군","호명면","경상북도 예천군 호명면"]
[null,72,"박영상","경상북도","예천군","풍양면","경상북도 예천군 풍양면"]
[null,73,"김종환","경상북도","예천군","예천읍","경상북도 예천군 예천읍"]
[null,74,"박순분","경상북도","예천군","유천면","경상북도 예천군 유천면"]
[null,75,"이의식","경상북도","예천군","호명면","경상북도 예천군 호명면"]
[null,76,"박임수","경상북도","예천군","호명면","경상북도 예천군 호명면"]
[null,77,"양재옥","경상북도","예천군","용문면","경상북도 예천군 용문면"]
[null,78,"백승오","경상북도","예천군","개포면","경상북도 예천군 개포면"]
[null,79,"임경호","경상북도","예천군","호명면","경상북도 예천군 호명면"]
[null,80,"최우영","경상북도","예천군","지보면","경상북도 예천군 지보면"]
[null,81,"김중기","경상북도","예천군","예천읍","경상북도 예천군 예천읍"]
[null,82,"황재익","경상북도","예천군","감천면","경상북도 예천군 감천면"]
[null,83,"편순덕","경상북도","예천군","풍양면","경상북도 예천군 풍양면"]
[null,84,"신광환","경상북도","예천군","개포면","경상북도 예천군 개포면"]
[null,85,"정재천","경상북도","예천군","풍양면","경상북도 예천군 풍양면"]
[null,86,"변대성","경상북도","예천군","용문면","경상북도 예천군 용문면"]
[null,87,"임인기","경상북도","예천군","개포면","경상북도 예천군 개포면"]
[null,88,"김성순","경상북도","예천군","예천읍","경상북도 예천군 예천읍"]
[null,89,"태용일","경상북도","예천군","용문면","경상북도 예천군 용문면"]
[null,90,"정용덕","경상북도","예천군","지보면","경상북도 예천군 지보면"]
[null,91,"윤희륜","경상북도","예천군","유천면","경상북도 예천군 유천면"]
[null,92,"정해선","경상북도","예천군","용문면","경상북도 예천군 용문면"]
[null,93,"구차숙","경상북도","예천군","풍양면","경상북도 예천군 풍양면"]
[null,94,"조청순","경상북도","예천군","풍양면","경상북도 예천군 풍양면"]
[null,95,"도갑순","경상북도","예천군","용궁면","경상북도 예천군 용궁면"]
[null,96,"한두용","경상북도","예천군","보문면","경상북도 예천군 보문면"]
[null,97,"정학섭","경상북도","예천군","풍양면","경상북도 예천군 풍양면"]
[null,98,"박성수","경상북도","예천군","유천면","경상북도 예천군 유천면"]
[null,99,"황한명","경상북도","예천군","지보면","경상북도 예천군 지보면"]
[null,100,"장선옥","경상북도","예천군","감천면","경상북도 예천군 감천면"]
[null,101,"안복수","경상북도","예천군","상리면","경상북도 예천군 상리면"]
[null,102,"안희열","경상북도","예천군","보문면","경상북도 예천군 보문면"]
[null,103,"남영일","경상북도","예천군","하리면","경상북도 예천군 하리면"]
[null,104,"박팔수","경상북도","예천군","예천읍","경상북도 예천군 예천읍"]
[null,105,"최인섭","경상북도","예천군","풍양면","경상북도 예천군 풍양면"]
[null,106,"박윤재","경상북도","예천군","지보면","경상북도 예천군 지보면"]
[null,107,"고재열","경상북도","예천군","개포면","경상북도 예천군 개포면"]
[null,108,"김시영","경상북도","예천군","유천면","경상북도 예천군 유천면"]
[null,109,"박숙화","경상북도","예천군","지보면","경상북도 예천군 지보면"]
[null,110,"이희채","경상북도","예천군","예천읍","경상북도 예천군 예천읍"]
[null,111,"신동영","경상북도","예천군","호명면","경상북도 예천군 호명면"]
[null,112,"이춘영","경상북도","예천군","호명면","경상북도 예천군 호명면"]
[null,113,"김차환","경상북도","예천군","지보면","경상북도 예천군 지보면"]
[null,114,"이창구","경상북도","예천군","예천읍","경상북도 예천군 예천읍"]
[null,115,"박재옥","경상북도","예천군","지보면","경상북도 예천군 지보면"]
[null,116,"안극영","경상북도","예천군","보문면","경상북도 예천군 보문면"]
[null,117,"백춘자","경상북도","예천군","용궁면","경상북도 예천군 용궁면"]
[null,118,"이영근","경상북도","예천군","예천읍","경상북도 예천군 예천읍"]
[null,119,"김종분","경상북도","예천군","지보면","경상북도 예천군 지보면"]
[null,120,"윤갑순","경상북도","예천군","예천읍","경상북도 예천군 예천읍"]
[null,121,"정천수","경상북도","예천군","지보면","경상북도 예천군 지보면"]
[null,122,"김중일","경상북도","예천군","예천읍","경상북도 예천군 예천읍"]
[null,123,"박현자","경상북도","예천군","예천읍","경상북도 예천군 예천읍"]
[null,124,"박임규","경상북도","예천군","상리면","경상북도 예천군 상리면"]
[null,125,"김종수","경상북도","예천군","호명면","경상북도 예천군 호명면"]
[null,126,"이만현","경상북도","예천군","예천읍","경상북도 예천군 예천읍"]
[null,127,"황병소","경상북도","예천군","예천읍","경상북도 예천군 예천읍"]
[null,128,"안희정","경상북도","예천군","유천면","경상북도 예천군 유천면"]
[null,129,"김명숙","경상북도","예천군","호명면","경상북도 예천군 호명면"]
[null,130,"김주영","경상북도","예천군","예천읍",{"$f":" D134&\" \" &E134& \" \" &F134","v":"경상북도 예천군 예천읍"}]
[null,131,"황명섭","경상북도","예천군","예천읍","경상북도 예천군 예천읍"]
[null,132,"유석수","경상북도","예천군","풍양면","경상북도 예천군 풍양면"]
[null,133,"권순태","경상북도","예천군","용궁면","경상북도 예천군 용궁면"]
[null,134,"안승규","경상북도","예천군","상리면","경상북도 예천군 상리면"]
[null,135,"황병희","경상북도","예천군","하리면","경상북도 예천군 하리면"]
[null,136,"윤시현","경상북도","예천군","풍양면","경상북도 예천군 풍양면"]
[null,137,"김교재","경상북도","예천군","예천읍","경상북도 예천군 예천읍"]
[null,138,"윤대봉","경상북도","예천군","용궁면","경상북도 예천군 용궁면"]
[null,139,"김설희","경상북도","예천군","예천읍","경상북도 예천군 예천읍"]
[null,140,"이순란","경상북도","예천군","예천읍","경상북도 예천군 예천읍"]
[null,141,"박기현","경상북도","예천군","예천읍","경상북도 예천군 예천읍"]
[null,142,"김선자","경상북도","예천군","예천읍","경상북도 예천군 예천읍"]
[null,143,"김용길","경상북도","예천군","용문면","경상북도 예천군 용문면"]
[null,144,"임옥선","경상북도","예천군","감천면","경상북도 예천군 감천면"]
[null,145,"이희철","경상북도","예천군","용궁면","경상북도 예천군 용궁면"]
[null,146,"엄춘길","경상북도","예천군","유천면","경상북도 예천군 유천면"]
[null,147,"김태호","경상북도","예천군","예천읍","경상북도 예천군 예천읍"]
[null,148,"장귀석","경상북도","예천군","예천읍","경상북도 예천군 예천읍"]
[null,149,"이대우","경상북도","예천군","예천읍","경상북도 예천군 예천읍"]
[null,150,"정우혁","경상북도","예천군","호명면","경상북도 예천군 호명면"]
[null,151,"윤원순","경상북도","예천군","풍양면","경상북도 예천군 풍양면"]
[null,152,"송준걸","경상북도","예천군","감천면","경상북도 예천군 감천면"]
[null,153,"이장민","경상북도","예천군","용궁면","경상북도 예천군 용궁면"]
[null,154,"최윤해","경상북도","예천군","용문면","경상북도 예천군 용문면"]
[null,155,"전성종","경상북도","예천군","예천읍","경상북도 예천군 예천읍"]
[null,156,"박미숙","경상북도","예천군","예천읍","경상북도 예천군 예천읍"]
[null,157,"김영태","경상북도","예천군","풍양면","경상북도 예천군 풍양면"]
[null,158,"김영옥","경상북도","예천군","예천읍","경상북도 예천군 예천읍"]
[null,159,"황창화","경상북도","예천군","예천읍","경상북도 예천군 예천읍"]
[null,160,"오경자","경상북도","예천군","지보면","경상북도 예천군 지보면"]
[null,161,"이인홍","경상북도","예천군","유천면","경상북도 예천군 유천면"]
[null,162,"고미화","경상북도","예천군","예천읍","경상북도 예천군 예천읍"]
[null,163,"정영철","경상북도","예천군","유천면","경상북도 예천군 유천면"]
[null,164,"구자일","경상북도","예천군","예천읍","경상북도 예천군 예천읍"]
[null,165,"황경도","경상북도","예천군","예천읍","경상북도 예천군 예천읍"]
[null,166,"김재진","경상북도","예천군","감천면","경상북도 예천군 감천면"]
[null,167,"김정수","경상북도","예천군","감천면","경상북도 예천군 감천면"]
[null,168,"임환덕","경상북도","예천군","예천읍","경상북도 예천군 예천읍"]
[null,169,"권영준","경상북도","예천군","예천읍","경상북도 예천군 예천읍"]
[null,170,"신수종","경상북도","예천군","감천면","경상북도 예천군 감천면"]
[null,171,"김한경","경상북도","예천군","용문면","경상북도 예천군 용문면"]
[null,172,"강성애","경상북도","예천군","감천면","경상북도 예천군 감천면"]
[null,173,"소경섭","경상북도","예천군","예천읍","경상북도 예천군 예천읍"]
[null,174,"정용수","경상북도","예천군","지보면","경상북도 예천군 지보면"]
[null,175,"조현욱","경상북도","예천군","용궁면","경상북도 예천군 용궁면"]
[null,176,"채경화","경상북도","예천군","용궁면","경상북도 예천군 용궁면"]
[null,177,"이희정","경상북도","예천군","유천면","경상북도 예천군 유천면"]
[null,178,"황정범","경상북도","예천군","예천읍","경상북도 예천군 예천읍"]
[null,179,"박운수","경상북도","예천군","예천읍","경상북도 예천군 예천읍"]
[null,180,"장예진","경상북도","예천군","예천읍","경상북도 예천군 예천읍"]
[null,181,"안영자","경상북도","예천군","예천읍","경상북도 예천군 예천읍"]
[null,182,"정철홍","경상북도","예천군","상리면","경상북도 예천군 상리면"]
[null,183,"정기태","경상북도","예천군","예천읍","경상북도 예천군 예천읍"]
[null,184,"이상훈","경상북도","예천군","예천읍","경상북도 예천군 예천읍"]
[null,185,"정영숙","경상북도","예천군","개포면","경상북도 예천군 개포면"]
[null,186,"김홍식","경상북도","예천군","유천면","경상북도 예천군 유천면"]
[null,187,"박주상","경상북도","예천군","예천읍","경상북도 예천군 예천읍"]
[null,188,"박민주","경상북도","예천군","지보면","경상북도 예천군 지보면"]
[null,189,"오현주","경상북도","예천군","예천읍","경상북도 예천군 예천읍"]
[null,190,"제완종","경상북도","예천군","유천면","경상북도 예천군 유천면"]
[null,191,"김기호","경상북도","예천군","예천읍","경상북도 예천군 예천읍"]
[null,192,"박미재","경상북도","예천군","예천읍","경상북도 예천군 예천읍"]
[null,193,"조주은","경상북도","예천군","예천읍","경상북도 예천군 예천읍"]
[null,194,"박성진","경상북도","예천군","예천읍",{"$f":" D198&\" \" &E198& \" \" &F198","v":"경상북도 예천군 예천읍"}]
[null,195,"김창일","경상북도","예천군","예천읍","경상북도 예천군 예천읍"]
[null,196,"강승수","경상북도","예천군","예천읍","경상북도 예천군 예천읍"]
[null,197,"김인태","경상북도","예천군","보문면","경상북도 예천군 보문면"]
[null,198,"신동한","경상북도","예천군","호명면","경상북도 예천군 호명면"]
[null,199,"안교학","경상북도","예천군","용궁면","경상북도 예천군 용궁면"]
[null,200,"전해진","경상북도","예천군","감천면","경상북도 예천군 감천면"]
[null,201,"박해용","경상북도","예천군","용궁면","경상북도 예천군 용궁면"]
[null,202,"임수임","경상북도","예천군","용궁면","경상북도 예천군 용궁면"]
[null,203,"정우영","경상북도","예천군","풍양면","경상북도 예천군 풍양면"]
[null,204,"임춘희","경상북도","예천군","예천읍","경상북도 예천군 예천읍"]
[null,205,"권행남","경상북도","예천군","예천읍","경상북도 예천군 예천읍"]
[null,206,"박찬일","경상북도","예천군","유천면","경상북도 예천군 유천면"]
[null,207,"윤희달","경상북도","예천군","용문면","경상북도 예천군 용문면"]
[null,208,"권철순","경상북도","예천군","예천읍","경상북도 예천군 예천읍"]
[null,209,"김강식","경상북도","예천군","용궁면","경상북도 예천군 용궁면"]
[null,210,"탁명옥","경상북도","예천군","예천읍","경상북도 예천군 예천읍"]
[null,211,"안영진","경상북도","예천군","예천읍","경상북도 예천군 예천읍"]
[null,212,"전중조","경상북도","예천군","예천읍","경상북도 예천군 예천읍"]
[null,213,"이재환","경상북도","예천군","호명면","경상북도 예천군 호명면"]
[null,214,"임선복","경상북도","예천군","감천면","경상북도 예천군 감천면"]
[null,215,"김춘상","경상북도","예천군","용문면","경상북도 예천군 용문면"]
[null,216,"김병원","경상북도","예천군","호명면","경상북도 예천군 호명면"]
[null,217,"성인종","경상북도","예천군","상리면","경상북도 예천군 상리면"]
[null,218,"박재분","경상북도","예천군","예천읍","경상북도 예천군 예천읍"]
[null,219,"이만규","경상북도","예천군","개포면","경상북도 예천군 개포면"]
[null,220,"이호우","경상북도","예천군","예천읍","경상북도 예천군 예천읍"]
[null,221,"이명규","경상북도","예천군","예천읍","경상북도 예천군 예천읍"]
[null,222,"최병옥","경상북도","예천군","감천면","경상북도 예천군 감천면"]

{"sheet":"Sheet2","index":1,"n_rows":0,"n_cols":0,"rows_kept":0}

{"sheet":"Sheet3","index":2,"n_rows":0,"n_cols":0,"rows_kept":0}